fUSD/lending_fUSD_20241117
["ID","MTS","AMOUNT","RATE_DAILY","PERIOD"]
[342425536,1731847496656,693.28,0.00024,60]
[342425537,1731847496798,502.52604571,0.00024,60]
[342425538,1731847496933,693.28,0.00024,60]
[342425539,1731847497191,693.28,0.00024,60]
[342425540,1731847497457,693.28,0.00024,60]
[342425541,1731847497722,693.28,0.00024,60]
[342425542,1731847498059,693.28,0.00024,60]
[342425543,1731847498428,693.28,0.00024,60]
[342425544,1731847498672,693.28,0.00024,60]
[342425545,1731847498930,693.28,0.00024,60]
[342425546,1731847499197,693.28,0.00024,60]
[342425547,1731847499487,693.28,0.00024,60]
[342425548,1731847499955,693.28,0.00024,60]
[342425549,1731847500063,693.28,0.00024,60]
[342425550,1731847500347,693.28,0.00024,60]
[342425551,1731847500611,693.28,0.00024,60]
[342425552,1731847501527,693.28,0.00024,60]
[342425553,1731847501730,693.28,0.00024,60]
[342425554,1731847502041,693.28,0.00024,60]
[342425555,1731847502336,693.28,0.00024,60]
[342425556,1731847502889,693.44551571,0.00024,60]
[342425557,1731847508323,2407.36,8.598e-05,2]
[342425560,1731847527296,546.49737246,0.00024,60]
[342425561,1731847534027,500.0,0.00024,60]
[342425562,1731847534293,223.91,0.00024,60]
[342425563,1731847541747,500.0,0.00024,60]
[342425564,1731847542152,500.0,0.00024,60]
[342425565,1731847542413,500.0,0.00024,60]
[342425566,1731847542816,500.0,0.00024,60]
[342425567,1731847543088,618.38,0.00024,60]
[342425568,1731847581368,500.96446324,0.00024,60]
[342425569,1731847606180,500.0,0.00024,60]
[342425570,1731847606435,500.0,0.00024,60]
[342425571,1731847606699,500.0,0.00024,60]
[342425572,1731847606974,414.28,0.00024,60]
[342425573,1731847608791,500.0,0.00024,60]
[342425574,1731847609070,500.0,0.00024,60]
[342425575,1731847609328,500.0,0.00024,60]
[342425576,1731847609589,500.0,0.00024,60]
[342425577,1731847609707,450.0,0.00025,60]
[342425578,1731847609881,224.13056889,0.00024,60]
[342425579,1731847618664,500.0,0.00024,60]
[342425580,1731847618969,525.71799507,0.00024,60]
[342425581,1731847624771,200.0,8.592e-05,2]
[342425582,1731847631137,-500.0,8.627e-05,2]
[342425583,1731847631158,-1781.69,8.644e-05,2]
[342425584,1731847631178,-500.0,8.654e-05,3]
[342425585,1731847631200,-924.98,8.659e-05,2]
[342425586,1731847631227,-250.0,8.696e-05,2]
[342425587,1731847631249,-224.64,8.696e-05,2]
[342425588,1731847631270,-250.0,8.733e-05,2]
[342425589,1731847631289,-563.32,8.745e-05,2]
[342425590,1731847631309,-150.0,8.767e-05,2]
[342425591,1731847631329,-162.21,8.781e-05,2]
[342425592,1731847631350,-1000.0,8.874e-05,2]
[342425593,1731847631370,-1852.42,8.919e-05,2]
[342425594,1731847631391,-454.68803665,8.931e-05,2]
[342425595,1731847653455,500.0,0.00024,60]
[342425596,1731847675895,500.0,0.00024,60]
[342425598,1731847678290,500.0,0.00024,60]
[342425599,1731847678588,500.0,0.00024,60]
[342425600,1731847678846,500.0,0.00024,60]
[342425601,1731847679392,500.0,0.00024,60]
[342425602,1731847679664,601.40032824,0.00024,60]
[342425603,1731847689986,500.0,0.00024,60]
[342425604,1731847692014,500.0,0.00024,60]
[342425605,1731847692308,609.37,0.00024,60]
[342425608,1731847718009,158.58183887,0.00024,60]
[342425617,1731847795026,500.0,0.00024,60]
[342425618,1731847809956,929.22275,0.00025,60]
[342425619,1731847824157,929.22275,0.00025,60]
[342425620,1731847825819,2600.83,0.00024,60]
[342425621,1731847826098,2600.83,0.00024,60]
[342425622,1731847826385,2600.83,0.00024,60]
[342425623,1731847826637,2600.83,0.00024,60]
[342425624,1731847827156,2600.83,0.00024,60]
[342425625,1731847827227,2600.83,0.00024,60]
[342425626,1731847827478,2600.83,0.00024,60]
[342425627,1731847827746,2600.83,0.00024,60]
[342425628,1731847827989,2600.83,0.00024,60]
[342425629,1731847828255,2600.83,0.00024,60]
[342425630,1731847828521,2600.83,0.00024,60]
[342425631,1731847828790,2600.83,0.00024,60]
[342425632,1731847829072,2600.83,0.00024,60]
[342425633,1731847829351,2600.83,0.00024,60]
[342425634,1731847829624,2600.83,0.00024,60]
[342425635,1731847829884,2600.83,0.00024,60]
[342425636,1731847830148,2600.83,0.00024,60]
[342425637,1731847830418,2600.83,0.00024,60]
[342425638,1731847830754,2600.83,0.00024,60]
[342425639,1731847831025,2600.83,0.00024,60]
[342425644,1731847831537,2600.83,0.00024,60]
[342425645,1731847831560,-1000.0,8.894e-05,2]
[342425646,1731847831570,-1545.31196335,8.931e-05,2]
[342425647,1731847831580,-2172.72,8.937e-05,2]
[342425648,1731847831590,-156.59,8.948e-05,2]
[342425649,1731847831599,-575.8,8.958e-05,2]
[342425650,1731847831608,-623.49,8.977e-05,2]
[342425651,1731847831620,-300.0,9.007e-05,2]
[342425652,1731847831630,-17101.01,9.008e-05,2]
[342425653,1731847831640,-1054.0,9.052e-05,2]
[342425654,1731847831649,-1054.0,9.528e-05,2]
[342425655,1731847831658,-3434.0,9.605e-05,2]
[342425656,1731847831668,-940.87,9.67e-05,2]
[342425657,1731847831679,-900.0,9.676e-05,2]
[342425658,1731847831690,-224.64,9.783e-05,2]
[342425659,1731847831700,-150.0,9.815e-05,2]
[342425660,1731847831710,-5000.0,9.85e-05,2]
[342425661,1731847831720,-160.867206,9.899e-05,2]
[342425662,1731847831729,-1314.66865468,9.899e-05,2]
[342425663,1731847831739,-150.0,9.899e-05,2]
[342425664,1731847831750,-36564.48811843,9.9e-05,2]
[342425665,1731847831762,-18486.50015601,9.9e-05,2]
[342425666,1731847831773,-21294.00001997,9.9e-05,2]
[342425667,1731847831785,-99351.30962915,9.9e-05,2]
[342425668,1731847831796,-24176.99917644,9.9e-05,2]
[342425669,1731847831807,-23351.8718,9.9e-05,2]
[342425670,1731847831816,-16409.6125,9.9e-05,2]
[342425671,1731847831826,-1000.0,9.9e-05,2]
[342425672,1731847831836,-4611.30055461,9.9e-05,2]
[342425673,1731847831846,-1000.0,9.9e-05,2]
[342425674,1731847831856,-1000.0,9.9e-05,2]
[342425675,1731847831865,-1000.0,9.9e-05,2]
[342425676,1731847831876,-1000.0,9.9e-05,2]
[342425677,1731847831885,-1000.0,9.9e-05,2]
[342425678,1731847831895,-1000.0,9.9e-05,3]
[342425679,1731847831904,-1000.0,9.9e-05,3]
[342425680,1731847831914,-420.0,9.908e-05,2]
[342425681,1731847831924,-41772.61596821,9.91e-05,2]
[342425682,1731847831936,-1399.2,9.91e-05,2]
[342425683,1731847831995,2600.83,0.00024,60]
[342425684,1731847832008,-510.89422316,9.91e-05,2]
[342425685,1731847832019,-23634.51363759,9.91e-05,2]
[342425686,1731847832029,-500.0,9.92e-05,2]
[342425687,1731847832038,-176.562,9.933e-05,2]
[342425688,1731847832048,-1645.469,9.933e-05,2]
[342425689,1731847832058,-500.0,9.95e-05,2]
[342425690,1731847832067,-500.0,9.95e-05,2]
[342425691,1731847832077,-500.0,9.95e-05,2]
[342425692,1731847832091,-500.0,9.95e-05,2]
[342425693,1731847832100,-467.719,9.95e-05,2]
[342425694,1731847832109,-1000.0,9.95e-05,2]
[342425695,1731847832120,-1000.0,9.95e-05,2]
[342425696,1731847832130,-987.4126,9.95e-05,2]
[342425697,1731847832140,-500.43736919,9.973e-05,2]
[342425698,1731847832149,-500.19226104,9.973e-05,2]
[342425699,1731847832159,-496.35659593,9.973e-05,2]
[342425700,1731847832168,-161.9334271,9.973e-05,2]
[342425701,1731847832178,-500.0,9.973e-05,2]
[342425702,1731847832188,-501.65695251,9.973e-05,2]
[342425703,1731847832197,-500.0,9.973e-05,2]
[342425704,1731847832207,-500.0,9.973e-05,2]
[342425705,1731847832216,-336.3403274,9.99e-05,2]
[342425706,1731847832226,-85936.10322931,9.996e-05,2]
[342425707,1731847832235,-29982.98009821,9.997e-05,2]
[342425708,1731847832244,-628.0,9.999e-05,2]
[342425709,1731847832253,-3746.0,9.999e-05,2]
[342425710,1731847832262,-814.0,9.999e-05,2]
[342425711,1731847832272,-1165.582,9.999e-05,2]
[342425712,1731847832281,-538.685,9.999e-05,2]
[342425713,1731847832291,-1159.0,9.999e-05,2]
[342425714,1731847832300,-150.0,9.999e-05,2]
[342425715,1731847832309,-13647.0,9.999e-05,2]
[342425716,1731847832319,-150.0,9.999e-05,2]
[342425717,1731847832328,-150.40530754,9.999e-05,2]
[342425718,1731847832338,-6385.12671404,9.999e-05,2]
[342425719,1731847832347,-516.24,9.999e-05,2]
[342425720,1731847832357,-488.86090152,9.999e-05,2]
[342425721,1731847832370,-2705.30934745,9.999e-05,2]
[342425722,1731847832381,-649.32687009,9.999e-05,2]
[342425723,1731847832394,-220548.66862894,9.999e-05,2]
[342425724,1731847832404,-343382.29912619,0.0001,2]
[342425725,1731847832414,-7701.19644926,0.0001,2]
[342425726,1731847832424,-331333.6205554,0.0001,2]
[342425727,1731847832436,-321.39906248,0.0001,2]
[342425728,1731847832448,-975.0,0.0001,2]
[342425729,1731847832505,2600.83,0.00024,60]
[342425730,1731847832565,2600.88143341,0.00024,60]
[342425779,1731847837396,-642.03718362,9.973e-05,2]
[342425780,1731847837405,-500.52824788,9.973e-05,2]
[342425781,1731847837416,-91357.96140605,0.0001,2]
[342425782,1731847837458,-704.10200001,0.0001,2]
[342425783,1731847837470,-1246.88,0.0001,2]
[342425784,1731847837522,-271459.25521819,0.0001,2]
[342425785,1731847837696,-823.71665588,0.0001,2]
[342425786,1731847837756,-3770.0451239,0.0001,2]
[342425787,1731847837817,-417.75551658,0.0001,2]
[342425788,1731847837830,-1367.64039301,0.0001,2]
[342425789,1731847837842,-3962.55749776,0.0001,2]
[342425790,1731847837853,-3110.01716113,0.0001,2]
[342425791,1731847837865,-799.5914014,0.0001,2]
[342425802,1731847839432,-1413.6876,0.0001,2]
[342425805,1731847839551,-4405.87833759,0.0001,2]
[342425806,1731847839563,-4609.88418734,0.0001,2]
[342425807,1731847839632,-1390.15234218,0.0001,2]
[342425808,1731847839644,-4868.07954542,0.0001,2]
[342425809,1731847839657,-469.107072,0.0001,2]
[342425810,1731847839668,-350.76,0.0001,2]
[342425825,1731847842451,-18007.50000002,0.0001,2]
[342425826,1731847842516,-941.5260415,0.0001,2]
[342425827,1731847842527,-850.60709067,0.0001,2]
[342425828,1731847842871,-4452.705,0.0001,2]
[342425829,1731847842887,-7139.00938203,0.0001,2]
[342426037,1731847845373,-1036.5065359,0.0001,2]
[342426039,1731847845386,-454.72811148,0.0001,2]
[342426045,1731847845436,-66241.2935994,0.0001,2]
[342426047,1731847845448,-380.38213126,0.0001,2]
[342426049,1731847845459,-532.399989,0.0001,2]
[342426066,1731847845612,-454.75,0.0001,2]
[342426079,1731847845730,-182469.63903128,0.0001,2]
[342426092,1731847845850,-18950.3518999,0.0001,2]
[342426175,1731847849368,500.0,0.00024,60]
[342426176,1731847849653,500.0,0.00024,60]
[342426177,1731847850007,500.0,0.00024,60]
[342426178,1731847850263,371.74,0.00024,60]
[342426183,1731847856441,500.0,0.00024,60]
[342426184,1731847856699,500.0,0.00024,60]
[342426185,1731847856977,500.0,0.00024,60]
[342426186,1731847857251,500.0,0.00024,60]
[342426187,1731847857523,500.0,0.00024,60]
[342426188,1731847857784,500.0,0.00024,60]
[342426189,1731847858062,500.0,0.00024,60]
[342426190,1731847858327,500.0,0.00024,60]
[342426191,1731847858600,500.0,0.00024,60]
[342426192,1731847858860,500.0,0.00024,60]
[342426193,1731847859127,500.0,0.00024,60]
[342426194,1731847859394,500.0,0.00024,60]
[342426195,1731847859647,500.0,0.00024,60]
[342426196,1731847859906,500.0,0.00024,60]
[342426197,1731847860168,500.0,0.00024,60]
[342426198,1731847860601,500.0,0.00024,60]
[342426199,1731847860685,500.0,0.00024,60]
[342426200,1731847861004,481.73725333,0.00024,60]
[342426201,1731847869894,3090.61485531,8.219e-05,2]
[342426202,1731847869919,922.76514469,8.219e-05,2]
[342426203,1731847877543,504.14970032,0.00024,60]
[342426204,1731847983215,557.449411,0.00025,60]
[342426205,1731847984050,500.0,0.00025,60]
[342426206,1731847984107,413.88,0.00025,60]
[342426207,1731847997632,500.0,0.00024907,120]
[342426208,1731848010875,1000.0,0.00025,60]
[342426209,1731848012202,1000.0,0.00025,60]
[342426210,1731848013203,1000.0,0.00025,60]
[342426211,1731848014076,1000.0,0.00025,60]
[342426212,1731848014964,1000.0,0.00025,60]
[342426213,1731848015891,1000.0,0.00025,60]
[342426214,1731848016998,1000.0,0.00025,60]
[342426215,1731848018267,1000.0,0.00025,60]
[342426216,1731848019073,500.25010251,0.00025,60]
[342426217,1731848019186,1000.0,0.00025,60]
[342426218,1731848021741,1000.0,0.00025,60]
[342426220,1731848047546,1000.0,0.00025,60]
[342426221,1731848057207,1000.0,0.00025,60]
[342426222,1731848066685,500.0,0.00025,60]
[342426223,1731848102854,500.0,0.00025,60]
[342426224,1731848103120,500.0,0.00025,60]
[342426225,1731848122741,1000.0,0.00025,60]
[342426227,1731848322159,53556.0,0.000172,45]
[342426228,1731848333232,500.0,0.00025,60]
[342426229,1731848594556,150.0,8.219e-05,2]
[342426230,1731848594578,150.0,8.219e-05,2]
[342426231,1731848594600,200.0,8.219e-05,2]
[342426232,1731848594623,150.0,8.219e-05,2]
[342426233,1731848594644,150.0,8.219e-05,2]
[342426234,1731848594666,150.0,8.219e-05,2]
[342426235,1731848594688,150.0,8.219e-05,2]
[342426236,1731848594709,150.0,8.219e-05,2]
[342426237,1731848594732,150.0,8.219e-05,2]
[342426238,1731848594752,150.0,8.219e-05,2]
[342426239,1731848594773,150.0,8.219e-05,2]
[342426240,1731848594794,150.0,8.219e-05,2]
[342426241,1731848594816,1962.71,8.219e-05,2]
[342426249,1731848723647,176.89,7.176e-05,2]
[342426250,1731848723831,176.89,8.073e-05,2]
[342426251,1731848849102,-287.9,8.805e-05,2]
[342426252,1731848849123,-250.0,8.809e-05,2]
[342426253,1731848849144,-193.92,8.896e-05,2]
[342426254,1731848849165,-250.0,8.909e-05,2]
[342426255,1731848849186,-596.29900848,8.923e-05,2]
[342426267,1731849031551,-1534.36,8.762e-05,2]
[342426268,1731849031565,-500.0,8.84e-05,2]
[342426269,1731849031575,-471.29,8.964e-05,2]
[342426270,1731849031585,-176.89,8.97e-05,2]
[342426271,1731849031594,-1000.0,8.997e-05,2]
[342426272,1731849031604,-200.0,9e-05,3]
[342426273,1731849031613,-166.87,9.026e-05,2]
[342426274,1731849031623,-250.0,9.055e-05,2]
[342426275,1731849031632,-2000.0,9.055e-05,2]
[342426276,1731849031641,-164.68,9.093e-05,2]
[342426277,1731849031651,-500.0,9.1e-05,3]
[342426278,1731849031660,-800.0,9.2e-05,3]
[342426279,1731849031670,-1100.0,9.3e-05,3]
[342426280,1731849031679,-1400.0,9.4e-05,3]
[342426281,1731849031688,-200.0,9.5e-05,3]
[342426282,1731849031697,-200.0,9.6e-05,3]
[342426283,1731849031706,-150.0,9.63e-05,2]
[342426284,1731849031715,-3734.1,9.67e-05,2]
[342426285,1731849031725,-880.62,9.67e-05,2]
[342426286,1731849031734,-800.0,9.676e-05,2]
[342426287,1731849031743,-200.0,9.7e-05,3]
[342426288,1731849031752,-200.0,9.8e-05,3]
[342426289,1731849031761,-176.89,9.867e-05,2]
[342426290,1731849031770,-150.0,9.891e-05,2]
[342426291,1731849031780,-2404.1223,9.9e-05,2]
[342426292,1731849031790,-1799.6604,9.9e-05,2]
[342426293,1731849031799,-1100.0,9.9e-05,3]
[342426294,1731849031811,-1133.0,9.9e-05,2]
[342426295,1731849031820,-1044.72771,9.9e-05,2]
[342426296,1731849031829,-2233.08959489,9.9e-05,2]
[342426297,1731849031841,-317.86658693,9.9e-05,2]
[342426298,1731849031865,-349.57893753,9.9e-05,2]
[342426299,1731849031877,-2099.46488065,9.9e-05,2]
[342426300,1731849031887,-1786.212,9.973e-05,2]
[342426301,1731849031897,-500.0,9.973e-05,2]
[342426302,1731849031906,-628.0,9.999e-05,2]
[342426303,1731849031916,-444.71311935,9.999e-05,2]
[342426304,1731849031927,-906.00486616,9.999e-05,2]
[342426305,1731849031953,-2395.28201449,9.999e-05,2]
[342426306,1731849031962,-814.0,9.999e-05,2]
[342426307,1731849031972,-3369.0,9.999e-05,2]
[342426308,1731849031981,-176.562,9.999e-05,2]
[342426309,1731849031991,-1316.375,9.999e-05,2]
[342426310,1731849032000,-500.0,9.999e-05,2]
[342426311,1731849032009,-1803.91300577,0.0001,2]
[342426312,1731849032041,-701.26254607,0.0001,2]
[342426313,1731849032065,-3152.94117973,0.0001,2]
[342426315,1731849032076,-449.1,0.0001,2]
[342426319,1731849037602,-20377.71178084,0.0001,2]
[342426320,1731849037615,-32255.46226499,0.0001,2]
[342426321,1731849037716,-69627.5910121,0.0001,2]
[342426322,1731849037776,-2222.536489,0.0001,2]
[342426327,1731849039522,-624.16000001,0.0001,2]
[342426328,1731849039534,-356.56089294,0.0001,2]
[342426329,1731849039641,-706.41138611,0.0001,2]
[342426330,1731849039756,-895.81535222,0.0001,2]
[342426331,1731849039767,-850.83603588,0.0001,2]
[342426347,1731849042561,-741.65,0.0001,2]
[342426353,1731849042728,-5961.31789957,0.0001,2]
[342426354,1731849042740,-1903.5001,0.0001,2]
[342426355,1731849042793,-954.65300368,0.0001,2]
[342426356,1731849042805,-255.91307823,0.0001,2]
[342426357,1731849042859,-4991.83525511,0.0001,2]
[342426358,1731849042918,-1273.2314635,0.0001,2]
[342426359,1731849042930,-376.3760015,0.0001,2]
[342426531,1731849045844,-175.34655652,0.0001,2]
[342426532,1731849045862,-912.52015996,0.0001,2]
[342426533,1731849045977,-551.80454081,0.0001,2]
[342426534,1731849045988,-2870.82963913,0.0001,2]
[342426535,1731849045999,-1575.6503278,0.0001,2]
[342426540,1731849196041,500.0,0.00025,60]
[342426541,1731849196316,413.88,0.00025,60]
[342426542,1731849221352,166.01455076,9.1e-05,30]
[342426555,1731849406755,150.0,8.219e-05,2]
[342426556,1731849406777,150.0,8.219e-05,2]
[342426557,1731849406797,150.0,8.219e-05,2]
[342426558,1731849406818,150.0,8.219e-05,2]
[342426559,1731849406840,150.0,8.219e-05,2]
[342426560,1731849406861,150.0,8.219e-05,2]
[342426561,1731849406882,150.0,8.219e-05,2]
[342426562,1731849406905,150.0,8.219e-05,2]
[342426563,1731849406927,150.0,8.219e-05,2]
[342426564,1731849406948,150.0,8.219e-05,2]
[342426565,1731849406973,150.0,8.219e-05,2]
[342426566,1731849406994,150.0,8.219e-05,2]
[342426567,1731849407015,150.0,8.219e-05,2]
[342426568,1731849407035,263.41413227,8.219e-05,2]
[342426569,1731849407059,1456.48586773,8.219e-05,2]
[342426570,1731849433710,176.89,7.412e-05,2]
[342426573,1731849588026,509.162257,0.00025,60]
[342426574,1731849612339,500.0,0.00025,60]
[342426576,1731849813650,150.0,7.353e-05,2]
[342426577,1731849813677,251.58,7.353e-05,2]
[342426578,1731849813702,98.42,7.353e-05,2]
[342426579,1731849955276,30148.7805876,6.94e-05,2]
[342426581,1731850034407,16414.63984901,0.000163,120]
[342426624,1731850231710,-250.0,8.778e-05,2]
[342426625,1731850231720,-657.58,8.817e-05,2]
[342426626,1731850231888,-19891.78844017,8.817e-05,2]
[342426627,1731850231901,-3350.63155983,8.817e-05,2]
[342426628,1731850231911,-150.0,8.858e-05,2]
[342426629,1731850231920,-150.0,8.999e-05,2]
[342426630,1731850231930,-29892.94558577,9e-05,2]
[342426631,1731850231939,-1025.0,9e-05,2]
[342426632,1731850231949,-1200.0,9e-05,2]
[342426633,1731850231959,-280.82,9.071e-05,2]
[342426634,1731850231968,-250.0,9.084e-05,2]
[342426635,1731850231977,-250.0,9.139e-05,2]
[342426636,1731850231987,-267.83,9.153e-05,2]
[342426637,1731850231996,-452.1,9.168e-05,2]
[342426638,1731850232006,-1000.0,9.182e-05,2]
[342426639,1731850232015,-164.68,9.241e-05,2]
[342426640,1731850232025,-933.66,9.67e-05,2]
[342426641,1731850232035,-940.87,9.67e-05,2]
[342426642,1731850232044,-800.0,9.676e-05,2]
[342426643,1731850232054,-2058.44047117,9.781e-05,2]
[342426644,1731850232140,-852.55952883,9.781e-05,2]
[342426646,1731850232150,-1570.2355,9.799e-05,2]
[342426647,1731850232159,-1584.5731,9.799e-05,2]
[342426648,1731850232169,-1619.70592094,9.799e-05,2]
[342426649,1731850232184,-880.29407906,9.799e-05,2]
[342426650,1731850232194,-150.0,9.84e-05,2]
[342426651,1731850232203,-160.867206,9.899e-05,2]
[342426653,1731850232212,-5875.65279421,9.899e-05,2]
[342426654,1731850237729,-279.91799999,8.733e-05,2]
[342426655,1731850237923,-252.58586773,8.733e-05,2]
[342426656,1731850237939,-320.30964028,8.733e-05,2]
[342426657,1731850237949,-318030.25592174,9.899e-05,2]
[342426658,1731850237958,-7316.1366268,9.899e-05,2]
[342426659,1731850237967,-1314.66865468,9.899e-05,2]
[342426660,1731850237976,-199.0,9.899e-05,2]
[342426661,1731850237985,-36564.4881,9.9e-05,2]
[342426662,1731850237994,-83590.3875,9.9e-05,2]
[342426663,1731850238003,-5000.0,9.9e-05,2]
[342426664,1731850238012,-54048.9438,9.9e-05,2]
[342426665,1731850238022,-3656.57952154,9.9e-05,2]
[342426666,1731850238031,-1053.1,9.953e-05,2]
[342426667,1731850238040,-500.0,9.973e-05,2]
[342426668,1731850238049,-500.0,9.973e-05,2]
[342426669,1731850238058,-300664.12659067,9.98e-05,2]
[342426670,1731850238071,-286.90958565,9.98e-05,2]
[342426671,1731850238086,-75042.6179474,9.98e-05,2]
[342426672,1731850238095,-224786.97085211,9.98e-05,2]
[342426673,1731850238104,-302.70629473,9.99e-05,2]
[342426674,1731850238113,-302.70629466,9.99e-05,2]
[342426675,1731850238122,-302.70629466,9.99e-05,2]
[342426676,1731850238131,-302.70629466,9.99e-05,2]
[342426677,1731850238140,-302.70629466,9.99e-05,2]
[342426678,1731850238149,-302.70629466,9.99e-05,2]
[342426679,1731850238158,-302.70629466,9.99e-05,2]
[342426680,1731850238167,-302.70629466,9.99e-05,2]
[342426682,1731850238176,-302.70629466,9.99e-05,2]
[342426684,1731850238185,-3746.0,9.999e-05,2]
[342426686,1731850238195,-150.0,9.999e-05,2]
[342426688,1731850238204,-631.0,9.999e-05,2]
[342426690,1731850238213,-628.0,9.999e-05,2]
[342426692,1731850238223,-500.0,9.999e-05,2]
[342426694,1731850238232,-254.86573668,9.999e-05,2]
[342426696,1731850238242,-8274.62588371,9.999e-05,2]
[342426698,1731850238251,-9940.38699833,9.999e-05,2]
[342426700,1731850238261,-2027593.46102866,0.0001,2]
[342426702,1731850238270,-201.5,0.0001,2]
[342426704,1731850238279,-3331.0,0.0001,2]
[342426706,1731850238288,-853679.57068757,0.0001,2]
[342426709,1731850238303,-9440.72144288,0.0001,2]
[342426711,1731850238316,-17070.24372101,0.0001,2]
[342426713,1731850238326,-11696.15584521,0.0001,2]
[342426717,1731850238347,-304.0553534,0.0001,2]
[342426747,1731850239770,-85570.05251335,0.0001,2]
[342426748,1731850239782,-285.42810326,0.0001,2]
[342426749,1731850239793,-5620.0,0.0001,2]
[342426758,1731850242707,-1539.80758481,9.799e-05,2]
[342426759,1731850242719,-3460.19241519,9.799e-05,2]
[342426760,1731850242728,-6525.25617527,0.0001,2]
[342426765,1731850242768,-8760.85764873,0.0001,2]
[342426772,1731850242833,-6110.58679945,0.0001,2]
[342426774,1731850242845,-5349.2586827,0.0001,2]
[342426776,1731850242857,-2539.19047405,0.0001,2]
[342426781,1731850242891,-16895.97334121,0.0001,2]
[342426783,1731850242903,-1233.18369723,0.0001,2]
[342426834,1731850243259,-353.30994669,0.0001,2]
[342426961,1731850245682,-5445.06,0.0001,2]
[342426962,1731850245763,-1234.43358969,0.0001,2]
[342426963,1731850245774,-9017.89980001,0.0001,2]
[342426964,1731850245858,-7419.85100849,0.0001,2]
[342426965,1731850245937,-1103863.09536974,0.0001,2]
[342426966,1731850245948,-777.76637999,0.0001,2]
[342426967,1731850246002,-47295.77609698,0.0001,2]
[342427559,1731850294353,3659.2,8.219e-05,2]
[342427560,1731850308959,150.0,8.438e-05,2]
[342427561,1731850308981,150.0,8.438e-05,2]
[342427562,1731850309002,200.0,8.438e-05,2]
[342427641,1731850398172,500.0,0.00024952,120]
[342427642,1731850412857,232.5306816,8.371e-05,2]
[342427643,1731850412881,267.4693184,8.371e-05,2]
[342427644,1731850418877,200.0,0.00024781,120]
[342427662,1731850806196,214.92,7.07e-05,2]
[342427663,1731850951526,252.18586773,7.035e-05,2]
[342427664,1731851019331,200.0,0.00024894,120]
[342427665,1731851031106,3487.07,8.219e-05,2]
[342427666,1731851232189,-252.585867,8.599e-05,2]
[342427667,1731851232210,-1000.0,8.643e-05,2]
[342427668,1731851232234,-2000.0,8.672e-05,2]
[342427669,1731851232256,-155.13,8.708e-05,2]
[342427670,1731851232276,-250.0,8.735e-05,2]
[342427671,1731851232296,-263.41,8.769e-05,2]
[342427672,1731851232317,-250.0,8.839e-05,2]
[342427673,1731851232338,-1699.56,8.859e-05,2]
[342427674,1731851232358,-250.0,8.864e-05,2]
[342427675,1731851232379,-22048.28516191,8.864e-05,2]
[342427676,1731851245118,-1851.71483809,8.864e-05,2]
[342427677,1731851245143,-258.84,8.864e-05,2]
[342427678,1731851245168,-150.0,8.877e-05,2]
[342427679,1731851245190,-277.27,8.899e-05,2]
[342427680,1731851245213,-289.1605,8.9e-05,2]
[342427681,1731851245237,-462.71,8.938e-05,2]
[342427682,1731851245260,-701.24,9.044e-05,2]
[342427683,1731851245282,-500.0,9.073e-05,2]
[342427684,1731851245304,-167.04,9.125e-05,2]
[342427685,1731851245325,-968.12,9.37e-05,2]
[342427686,1731851245346,-300.0,9.508e-05,2]